bitfinex/quotes_BTCUSD_20251113
["timestamp","ask_amount","ask_price","bid_price","bid_amount"]
[1763066684588,0.1201412,98787.0,98786.0,0.00097191]
[1763066685023,0.10116915,98787.0,98786.0,0.00097191]
[1763066686155,0.45018441,98787.0,98786.0,0.00097191]
[1763066686377,0.4720084,98787.0,98786.0,0.00097191]
[1763066687043,0.4710084,98787.0,98786.0,0.00097191]
[1763066687278,0.4720084,98787.0,98786.0,0.00097191]
[1763066687492,0.4760084,98787.0,98786.0,0.00097191]
[1763066687712,0.4730084,98787.0,98786.0,0.00097191]
[1763066688147,0.4760084,98787.0,98786.0,0.00097191]
[1763066688586,0.4730084,98787.0,98786.0,0.00097191]
[1763066688787,0.4720084,98787.0,98786.0,0.00097191]
[1763066689714,0.50544419,98787.0,98786.0,0.00097191]
[1763066689927,0.50244419,98787.0,98786.0,0.00097191]
[1763066690794,0.54886293,98787.0,98786.0,0.00097191]
[1763066691225,0.54586293,98787.0,98786.0,0.00097191]
[1763066691663,0.54786293,98787.0,98786.0,0.00097191]
[1763066691878,0.54486293,98787.0,98786.0,0.00097191]
[1763066692094,0.54786293,98787.0,98786.0,0.00097191]
[1763066692301,0.54486293,98787.0,98786.0,0.00097191]
[1763066692518,0.20252416,98754.0,98750.0,0.0004]
[1763066692753,0.09816915,98751.0,98750.0,0.00086139]
[1763066694727,0.09816915,98751.0,98750.0,0.00186139]
[1763066695153,0.09816915,98751.0,98750.0,0.00286139]
[1763066695633,0.09816915,98751.0,98750.0,0.00186139]
[1763066695841,0.09816915,98751.0,98750.0,0.00286139]
[1763066696072,0.09816915,98751.0,98750.0,0.00186139]
[1763066696328,0.46712853,98751.0,98750.0,0.00086139]
[1763066696559,0.51054727,98751.0,98750.0,0.00186139]
[1763066696752,0.44498625,98751.0,98750.0,0.00186139]
[1763066697591,0.44798625,98751.0,98750.0,0.00186139]
[1763066697786,0.44798625,98751.0,98750.0,0.00086139]
[1763066697988,0.44698625,98751.0,98750.0,0.00086139]
[1763066698192,0.16740499,98751.0,98750.0,0.00086139]
[1763066698430,0.16540499,98751.0,98750.0,0.00179861]
[1763066698636,0.17287764,98751.0,98750.0,0.00179861]
[1763066698841,0.18876909,98751.0,98750.0,0.00179861]
[1763066699016,0.18776909,98751.0,98750.0,0.00179861]
[1763066699253,0.17487764,98751.0,98750.0,0.00179861]
[1763066699778,0.17287764,98751.0,98750.0,0.00179861]
[1763066699989,0.24596884,98741.0,98740.0,0.0004]
[1763066700281,0.26535087,98741.0,98740.0,0.0004]
[1763066701076,0.20257062,98731.0,98689.0,0.323]
[1763066701279,0.64566035,98731.0,98660.0,0.0004]
[1763066701480,2.63041246,98731.0,98660.0,0.0004]
[1763066701729,2.63041246,98731.0,98661.0,0.09654]
[1763066701730,2.62506004,98731.0,98661.0,0.09654]
[1763066701891,0.61606004,98731.0,98686.0,0.04848]
[1763066702089,0.61606004,98731.0,98660.0,0.0004]
[1763066702247,0.2026938,98671.0,98670.0,0.04848]
[1763066702447,0.2026938,98671.0,98660.0,0.0004]
[1763066702448,0.60428016,98680.0,98660.0,0.0004]
[1763066702691,0.21013273,98690.0,98660.0,0.0004]
[1763066702692,0.70244931,98670.0,98660.0,0.0004]
[1763066702867,0.90514575,98670.0,98660.0,0.0004]
[1763066703087,0.70244931,98670.0,98660.0,0.0004]
[1763066703443,0.09816915,98664.0,98660.0,0.0004]
[1763066703983,0.00046091,98670.0,98669.0,0.11199]
[1763066704400,0.00046091,98670.0,98660.0,0.0014]
[1763066704571,0.00046091,98670.0,98669.0,0.11199]
[1763066705014,0.00046091,98670.0,98669.0,0.04848]
[1763066705493,0.00046091,98670.0,98669.0,0.37148]
[1763066705661,0.00146091,98670.0,98669.0,0.5741779]
[1763066705897,0.00146091,98670.0,98669.0,0.61759664]
[1763066706087,0.00146091,98670.0,98669.0,0.6275198]
[1763066706682,0.00246091,98670.0,98669.0,0.6325198]
[1763066706882,0.00146091,98670.0,98669.0,0.6325198]
[1763066707100,0.00046091,98670.0,98669.0,0.41489874]
[1763066707303,0.00146091,98670.0,98669.0,0.41489874]
[1763066707506,0.00146091,98670.0,98669.0,0.42089874]
[1763066707919,0.00246091,98670.0,98669.0,0.42089874]
[1763066708208,0.00146091,98670.0,98669.0,0.42089874]
[1763066708433,0.00246091,98670.0,98669.0,0.62359664]
[1763066708651,0.00146091,98670.0,98669.0,0.61759664]
[1763066709108,0.00246091,98670.0,98669.0,0.42089874]
[1763066710887,0.001,98670.0,98669.0,0.48380962]
[1763066711103,0.09816915,98710.0,98681.0,0.04341874]
[1763066711305,0.09816915,98731.0,98709.0,0.10587]
[1763066711507,0.09816915,98731.0,98729.0,0.04507]
[1763066711508,0.01884487,98730.0,98729.0,0.04507]
[1763066711717,0.09816915,98731.0,98729.0,0.04507]
[1763066711942,0.09816915,98731.0,98730.0,0.0608]
[1763066712420,0.09816915,98731.0,98729.0,0.04507]
[1763066712630,0.09816915,98731.0,98692.0,0.09775]
[1763066712631,0.20261217,98711.0,98692.0,0.09775]
[1763066712835,0.02897617,98730.0,98729.0,0.00013931]
[1763066712836,0.21270335,98730.0,98729.0,0.00013931]
[1763066713055,0.23802196,98730.0,98729.0,0.00013931]
[1763066713264,0.56102196,98730.0,98729.0,0.00013931]
[1763066713470,0.56102196,98730.0,98682.0,0.09775]
[1763066713471,0.61441187,98700.0,98660.0,0.0004]
[1763066713676,0.60428016,98690.0,98669.0,0.04861934]
[1763066713881,0.01885406,98689.0,98670.0,0.42075]
[1763066714080,0.01885406,98688.0,98670.0,0.42075]
[1763066714339,0.09816915,98691.0,98670.0,0.42075]
[1763066714340,0.01885406,98687.0,98671.0,0.42075]
[1763066714514,0.01885406,98686.0,98671.0,0.42075]
[1763066714747,0.01885406,98685.0,98672.0,0.42075]
[1763066714926,0.01885406,98684.0,98672.0,0.09775]
[1763066715148,0.01885406,98683.0,98669.0,0.04861934]
[1763066715376,0.01885406,98682.0,98669.0,0.04861934]
[1763066715617,0.09816915,98676.0,98671.0,0.002]
[1763066715801,0.01885406,98675.0,98671.0,0.002]
[1763066716008,0.01885406,98674.0,98671.0,0.002]
[1763066716228,0.01885406,98673.0,98671.0,0.002]
[1763066716455,0.01885406,98672.0,98671.0,0.002]
[1763066716677,0.01885406,98672.0,98669.0,0.04861934]
[1763066716931,0.01885406,98671.0,98669.0,0.04861934]
[1763066717151,0.01885406,98670.0,98669.0,0.04861934]
[1763066717806,0.01885406,98670.0,98669.0,0.00013934]
[1763066718012,0.01885406,98670.0,98669.0,0.00113934]
[1763066718458,0.01885406,98670.0,98669.0,0.00013934]
[1763066718674,0.01885406,98670.0,98669.0,0.00113934]
[1763066719082,0.01885406,98670.0,98669.0,0.00013934]
[1763066719316,0.01985406,98670.0,98669.0,0.00013934]
[1763066719748,0.02532217,98670.0,98669.0,0.00013934]
[1763066719953,0.02632217,98670.0,98669.0,0.00013934]
[1763066720162,0.02532217,98670.0,98669.0,0.00013934]
[1763066720947,0.39174091,98670.0,98669.0,0.00013934]
[1763066721159,0.39274091,98670.0,98669.0,0.00013934]
[1763066721362,0.52571434,98661.0,98660.0,0.0004]
[1763066721569,0.59445525,98661.0,98660.0,0.00086091]
[1763066722117,0.61615874,98661.0,98660.0,1e-08]
[1763066722803,0.202776,98631.0,98630.0,0.0004]
[1763066722954,0.22209086,98631.0,98630.0,0.0004]
[1763066723155,0.55154495,98631.0,98630.0,0.00352846]
[1763066723410,0.58202765,98631.0,98630.0,0.00352846]
[1763066723816,0.37279756,98631.0,98630.0,0.00352846]
[1763066724379,0.34231486,98631.0,98630.0,0.00352846]
[1763066724980,0.01931486,98631.0,98630.0,0.00352846]
[1763066725394,0.0004608,98631.0,98630.0,0.10127846]
[1763066725615,0.0004608,98631.0,98630.0,0.00352846]
[1763066726225,0.02030869,98631.0,98630.0,0.00352846]
[1763066726426,0.01930869,98631.0,98630.0,0.00352846]
[1763066726816,0.01930869,98631.0,98630.0,0.00452846]
[1763066727024,0.02130869,98631.0,98630.0,0.00352846]
[1763066727499,0.01930869,98631.0,98630.0,0.00352846]
[1763066728017,0.22208469,98631.0,98630.0,0.00452846]
[1763066728464,0.01930869,98631.0,98630.0,0.00552846]
[1763066728669,0.01930869,98631.0,98630.0,0.00452846]
[1763066728670,0.03521667,98631.0,98630.0,0.00452846]
[1763066728872,0.01636878,98631.0,98630.0,0.00352846]
[1763066729408,0.01636878,98631.0,98630.0,0.00452846]
[1763066729629,0.0004608,98631.0,98630.0,0.00352846]
[1763066730064,0.0004608,98631.0,98630.0,0.00552846]
[1763066730264,0.0004608,98631.0,98630.0,0.0489472]
[1763066730707,0.0004608,98631.0,98630.0,0.00452846]
[1763066730907,0.0004608,98631.0,98630.0,0.00852846]
[1763066731218,0.0004608,98631.0,98630.0,0.00752846]
[1763066731423,0.0004608,98631.0,98630.0,0.0469472]
[1763066731624,0.0004608,98631.0,98630.0,0.57472525]
[1763066731836,0.0004608,98631.0,98630.0,0.57672525]
[1763066732249,0.0014608,98631.0,98630.0,0.57972525]
[1763066732458,0.09816915,98672.0,98650.0,0.33313684]
[1763066732676,0.01884657,98671.0,98650.0,0.3231394]
[1763066732880,0.01884657,98670.0,98660.0,0.04583]
[1763066733096,0.01884657,98669.0,98660.0,0.04583]
[1763066733307,0.09816915,98687.0,98671.0,0.06317]
[1763066733545,0.09816915,98687.0,98671.0,0.109]
[1763066733546,0.01590103,98683.0,98671.0,0.109]
[1763066733751,0.01884534,98682.0,98671.0,0.20096]
[1763066733956,0.01590103,98683.0,98671.0,0.20096]
[1763066733957,0.01884534,98681.0,98671.0,0.20096]
[1763066734164,0.01884534,98680.0,98671.0,0.20096]
[1763066734374,0.21857191,98683.0,98671.0,0.04583]
[1763066734581,0.09816915,98672.0,98671.0,0.04583]
[1763066734807,0.09816915,98672.0,98663.0,0.04583]
[1763066735036,0.09816915,98672.0,98671.0,0.001]
[1763066735258,0.64270903,98672.0,98671.0,0.002]
[1763066735466,0.68612777,98672.0,98671.0,0.001]
[1763066735668,0.69258945,98672.0,98671.0,0.002]
[1763066736099,0.20273489,98651.0,98650.0,0.0001394]
[1763066736330,0.22158237,98651.0,98650.0,0.0001394]
[1763066737298,0.22258237,98651.0,98650.0,0.0001394]
[1763066737554,0.22904731,98651.0,98650.0,0.0001394]
[1763066737712,0.55104731,98651.0,98650.0,0.0001394]
[1763066737911,0.55204731,98651.0,98650.0,0.0001394]
[1763066738134,0.55304731,98651.0,98650.0,0.0001394]
[1763066738346,0.55304731,98651.0,98650.0,0.00274592]
[1763066738703,0.55204731,98651.0,98650.0,0.00274592]
[1763066739146,0.55304731,98651.0,98650.0,0.00274592]
[1763066739304,0.55204731,98651.0,98650.0,0.00274592]
[1763066739507,0.55304731,98651.0,98650.0,0.00274592]
[1763066740138,0.55304707,98651.0,98650.0,0.00274592]
[1763066740342,0.55104707,98651.0,98650.0,0.00274592]
[1763066740541,0.55204707,98651.0,98650.0,0.00274592]
[1763066740741,0.59646581,98651.0,98650.0,0.00274592]
[1763066740950,0.59546581,98651.0,98650.0,0.00274592]
[1763066741156,0.59446581,98651.0,98650.0,0.00274592]
[1763066741402,0.55204707,98651.0,98650.0,0.00274592]
[1763066741946,0.02631218,98651.0,98650.0,0.00274592]
[1763066742396,0.02732697,98651.0,98650.0,0.00274592]
[1763066743123,0.01984748,98651.0,98650.0,0.00274592]
[1763066743949,0.01884748,98651.0,98650.0,0.00274592]
[1763066744144,0.01884748,98651.0,98650.0,0.00374592]
[1763066744376,0.01884748,98651.0,98650.0,0.00474592]
[1763066745261,0.02533545,98651.0,98650.0,0.00474592]
[1763066745477,0.02533545,98651.0,98650.0,0.00374592]
[1763066745704,0.34833545,98651.0,98650.0,0.00374592]
[1763066745940,0.37011177,98651.0,98650.0,0.00374592]
[1763066746583,0.37111177,98651.0,98650.0,0.00374592]
[1763066746792,0.37111177,98651.0,98650.0,0.00274592]
[1763066746998,0.37111177,98651.0,98630.0,0.0004]
[1763066746999,0.20277072,98634.0,98630.0,0.0004]
[1763066747226,0.30094515,98631.0,98630.0,0.00053945]
[1763066747431,0.3262806,98631.0,98630.0,0.00053945]
[1763066748039,0.1235046,98631.0,98630.0,0.00053945]
[1763066748447,0.1245046,98631.0,98630.0,0.00053945]
[1763066748650,0.1235046,98631.0,98630.0,0.00053945]
[1763066748855,0.1245046,98631.0,98630.0,0.00053945]
[1763066750116,0.1235046,98631.0,98630.0,0.00053945]
[1763066750856,0.4465046,98631.0,98630.0,0.00053945]
[1763066751246,0.44660357,98631.0,98630.0,0.00053945]
[1763066752090,0.44760357,98631.0,98630.0,0.00053945]
[1763066752296,0.44760135,98631.0,98630.0,0.00053945]
[1763066752560,0.44860135,98631.0,98630.0,0.00053945]
[1763066752746,0.44860135,98631.0,98630.0,0.00106112]
[1763066752903,0.44739858,98631.0,98630.0,0.00106112]
[1763066753101,0.44639858,98631.0,98630.0,0.00106112]
[1763066753352,0.44739858,98631.0,98630.0,0.00106112]
[1763066753566,0.44839858,98631.0,98630.0,0.00106112]
[1763066753782,0.44739858,98631.0,98630.0,0.00106112]
[1763066754168,0.44839858,98631.0,98630.0,0.00106112]
[1763066754367,0.44739858,98631.0,98630.0,0.00106112]
[1763066754568,0.12439858,98631.0,98630.0,0.00106112]
[1763066754757,0.12539858,98631.0,98630.0,0.00106112]
[1763066754953,0.12439858,98631.0,98630.0,0.00106112]
[1763066755273,0.11791283,98631.0,98630.0,0.00106112]
[1763066756960,0.11691283,98631.0,98630.0,0.00106112]
[1763066757427,0.11691283,98631.0,98630.0,0.04689112]
[1763066757830,0.11691283,98631.0,98630.0,0.04789112]
[1763066758129,0.01894645,98631.0,98630.0,0.04789112]
[1763066758292,0.01590786,98634.0,98630.0,0.04789112]
[1763066758449,0.01893564,98633.0,98630.0,0.04736945]
[1763066758656,0.01013581,98660.0,98630.0,0.04736945]
[1763066758657,0.48211276,98650.0,98631.0,0.09196]
[1763066758956,0.01013581,98660.0,98639.0,0.06317]
[1763066758957,0.01590731,98647.0,98639.0,0.06317]
[1763066759086,0.01893563,98646.0,98639.0,0.06317]
[1763066759295,0.01893563,98645.0,98639.0,0.06317]
[1763066759492,0.20275133,98643.0,98631.0,0.09196]
[1763066759692,0.09816915,98634.0,98630.0,0.04836945]
[1763066759893,0.01893563,98633.0,98630.0,0.05136945]
[1763066760206,0.09816915,98634.0,98630.0,0.04836945]
[1763066760392,0.01590731,98647.0,98630.0,0.04836945]
[1763066760596,0.48211276,98640.0,98639.0,0.002]
[1763066760791,0.48211276,98640.0,98630.0,0.00053945]
[1763066760792,0.02542673,98640.0,98630.0,0.00053945]
[1763066760998,0.20276817,98635.0,98630.0,0.00053945]
[1763066761202,0.01893822,98639.0,98630.0,0.00053945]
[1763066761203,0.01893822,98634.0,98631.0,0.001]
[1763066761426,0.01893822,98633.0,98631.0,0.001]
[1763066761627,0.48211276,98650.0,98630.0,0.00053945]
[1763066761628,0.01893822,98632.0,98630.0,0.00053945]
[1763066761946,0.01893822,98631.0,98630.0,0.00053945]
[1763066762125,0.01013479,98670.0,98630.0,0.08974945]
[1763066762359,0.09816915,98637.0,98630.0,0.00053945]
[1763066762574,0.323,98669.0,98631.0,0.08921]
[1763066762575,0.01894197,98636.0,98631.0,0.08921]
[1763066762783,0.09816915,98672.0,98631.0,0.08921]
[1763066762992,0.09816915,98657.0,98652.0,0.05657]
[1763066763201,0.01894348,98656.0,98652.0,0.05657]
[1763066763405,0.09816915,98672.0,98661.0,0.04399]
[1763066763618,0.20269585,98670.0,98661.0,0.04399]
[1763066763824,0.20270822,98664.0,98642.0,0.08921]
[1763066764037,0.09816915,98651.0,98642.0,0.08921]
[1763066764305,0.02730374,98695.0,98670.0,0.323]
[1763066764540,0.0065077,98694.0,98686.0,0.04399]
[1763066764759,0.05398313,98728.0,98686.0,0.04399]
[1763066764760,0.09816915,98712.0,98703.0,0.05657]
[1763066764983,0.09816915,98712.0,98703.0,0.10056]
[1763066765267,0.00651182,98711.0,98687.0,0.08921]
[1763066765494,0.09816915,98695.0,98686.0,0.04399]
[1763066765928,0.09816915,98695.0,98686.0,0.04412945]
[1763066766960,0.09816915,98695.0,98686.0,0.00013945]
[1763066767863,0.09816915,98695.0,98686.0,0.00113945]
[1763066768484,0.09816915,98695.0,98687.0,0.08871]
[1763066768904,0.50903276,98720.0,98696.0,0.06144]
[1763066769326,0.02692,98720.0,98697.0,0.08871]
[1763066769552,0.48231276,98730.0,98711.0,0.06144]
[1763066769758,0.30074896,98727.0,98697.0,0.08871]
[1763066769966,0.09816915,98727.0,98697.0,0.08871]
[1763066770417,0.09816915,98727.0,98711.0,0.06144]
[1763066770623,0.09816915,98727.0,98726.0,0.04448]
[1763066770836,0.09816915,98727.0,98712.0,0.04448]
[1763066771280,0.09816915,98727.0,98696.0,0.04448]
[1763066771281,0.0257,98712.0,98696.0,0.04448]
[1763066771533,0.09816915,98701.0,98681.0,0.08871]
[1763066771738,0.58028191,98701.0,98681.0,0.08871]
[1763066771940,0.20263925,98698.0,98681.0,0.08884945]
[1763066772145,0.2026404,98697.0,98681.0,0.00013945]
[1763066772603,0.20266807,98684.0,98681.0,0.00013945]
[1763066772810,0.09816915,98686.0,98681.0,0.00013945]
[1763066773216,0.09816915,98686.0,98681.0,0.00213945]
[1763066773419,0.09816915,98686.0,98681.0,0.00013945]
[1763066773793,0.09816915,98686.0,98681.0,0.00113945]
[1763066774376,0.20266622,98685.0,98681.0,0.00013945]
[1763066774590,0.09816915,98686.0,98681.0,0.00013945]
[1763066774817,0.2026712,98682.0,98681.0,0.00113945]
[1763066775017,0.2552912,98682.0,98681.0,0.00113945]
[1763066775647,0.5782912,98682.0,98681.0,0.00113945]
[1763066775804,0.5782912,98682.0,98681.0,0.00213945]
[1763066775998,0.5782912,98682.0,98681.0,0.00013945]
[1763066776500,0.5782912,98682.0,98681.0,0.00113945]
[1763066776711,0.5782912,98682.0,98681.0,0.00013945]
[1763066777098,0.5822912,98682.0,98681.0,0.00013945]
[1763066779291,0.60113829,98682.0,98681.0,0.00013945]
[1763066780384,0.60114583,98682.0,98681.0,0.00013945]
[1763066780808,0.004,98682.0,98681.0,0.00013945]
[1763066780960,0.25947583,98682.0,98681.0,0.00013945]
[1763066782587,0.25947583,98682.0,98681.0,1e-08]
[1763066782771,0.30937413,98682.0,98681.0,1e-08]
[1763066782989,0.26595539,98682.0,98681.0,1e-08]
[1763066783601,0.30937413,98682.0,98681.0,1e-08]
[1763066783987,0.35876951,98682.0,98681.0,1e-08]
[1763066784231,2.71313061,98682.0,98681.0,1e-08]
[1763066784449,0.68548651,98682.0,98681.0,1e-08]
[1763066784605,0.65412541,98682.0,98681.0,1e-08]
[1763066784844,2.65742625,98682.0,98681.0,1e-08]
[1763066785028,2.78320575,98682.0,98681.0,1e-08]
[1763066785203,0.20275339,98642.0,98641.0,0.00023473]
[1763066785411,0.53142339,98642.0,98641.0,0.00037879]
[1763066786408,0.53242339,98642.0,98641.0,0.00037879]
[1763066787025,0.53342339,98642.0,98641.0,0.00037879]
[1763066788264,0.5493326,98642.0,98641.0,0.00037879]
[1763066789123,0.20284548,98598.0,98582.0,0.08871]
[1763066789303,0.20284548,98598.0,98596.0,0.0005508]
[1763066789304,0.13030915,98597.0,98596.0,0.0005508]
[1763066790391,0.13030915,98597.0,98596.0,0.0045508]
[1763066790604,0.33315507,98597.0,98596.0,0.0045508]
[1763066790778,0.33315507,98597.0,98596.0,0.0005508]
[1763066790976,0.65615507,98597.0,98596.0,0.0005508]
[1763066792200,0.67206965,98597.0,98596.0,0.0005508]
[1763066794262,0.71548839,98597.0,98596.0,0.0005508]
[1763066794831,0.74290353,98597.0,98596.0,0.0005508]
[1763066795211,0.71548839,98597.0,98596.0,0.00116579]
[1763066795444,0.74290353,98597.0,98596.0,0.00116579]
[1763066795838,0.20289943,98571.0,98570.0,0.001]
[1763066796044,0.55849992,98571.0,98570.0,0.001]
[1763066796250,0.00046049,98571.0,98570.0,0.001]
[1763066797447,0.00046049,98571.0,98570.0,0.002]
[1763066798107,0.00146049,98571.0,98570.0,0.57132023]
[1763066798282,0.00146049,98571.0,98570.0,0.61339837]
[1763066798478,0.00146049,98571.0,98570.0,0.69013534]
[1763066798687,0.00146049,98571.0,98570.0,0.68913534]
[1763066798886,0.00046049,98571.0,98570.0,0.68913534]
[1763066799089,0.00046049,98571.0,98570.0,0.69113534]
[1763066799290,0.09816915,98639.0,98601.0,0.04341874]
[1763066799506,0.09816915,98639.0,98638.0,0.0608]
[1763066799681,0.0321,98659.0,98638.0,0.0608]
[1763066799876,0.09816915,98643.0,98639.0,0.13049]
[1763066800145,0.09816915,98643.0,98639.0,0.04345]
[1763066800285,0.0321,98659.0,98639.0,0.04345]
[1763066800498,0.0321,98674.0,98640.0,0.08704]
[1763066800694,0.0321,98674.0,98657.0,0.0608]
[1763066801802,0.0321,98674.0,98646.0,0.08704]
[1763066801803,0.09816915,98668.0,98646.0,0.08704]
[1763066802040,0.20270201,98667.0,98646.0,0.08704]
[1763066802262,0.001,98658.0,98640.0,0.32311692]
[1763066802446,0.09816915,98668.0,98641.0,0.08704]
[1763066802657,0.09816915,98668.0,98640.0,0.00211692]
[1763066802896,0.09816915,98653.0,98640.0,0.08715692]
[1763066803099,0.09816915,98668.0,98640.0,0.08715692]
[1763066803100,0.09816915,98668.0,98646.0,0.002]
[1763066803334,0.09816915,98653.0,98646.0,0.002]
[1763066803583,0.09816915,98652.0,98640.0,0.08715692]
[1763066803790,0.09816915,98652.0,98640.0,0.00011692]
[1763066803991,0.09816915,98652.0,98640.0,0.00111692]
[1763066805047,0.09816915,98652.0,98640.0,0.00011692]
[1763066805434,0.09816915,98652.0,98640.0,0.00211692]
[1763066805886,0.09916915,98652.0,98640.0,0.00011692]
[1763066806397,0.09916915,98652.0,98640.0,0.00198592]
[1763066810849,0.20275484,98642.0,98640.0,0.00198592]
[1763066810988,0.0321,98641.0,98640.0,0.00198592]
[1763066811679,0.01013787,98640.0,98612.0,0.08704]
[1763066811885,0.09816915,98619.0,98612.0,0.00011718]
[1763066812299,0.01013787,98640.0,98621.0,0.0608]
[1763066812499,0.60717737,98640.0,98621.0,0.10425]
[1763066813187,0.60717737,98640.0,98621.0,0.04345]
[1763066813823,0.09816915,98631.0,98622.0,0.08704]
[1763066814049,0.09816915,98634.0,98622.0,0.08704]
[1763066814186,0.09816915,98652.0,98630.0,0.0608]
[1763066814370,0.09816915,98632.0,98622.0,0.08704]
[1763066814887,0.09816915,98632.0,98631.0,0.0608]
[1763066815237,0.001,98634.0,98631.0,0.0608]
[1763066815437,0.09816915,98633.0,98626.0,0.08704]
[1763066815850,0.001,98632.0,98626.0,0.08704]
[1763066816052,0.001,98632.0,98631.0,0.003]
[1763066816462,0.001,98632.0,98621.0,0.04345]
[1763066816828,0.60717737,98631.0,98626.0,0.003]
[1763066817026,0.09816915,98633.0,98626.0,0.003]
[1763066817925,0.001,98632.0,98626.0,0.003]
[1763066818133,0.0321,98641.0,98621.0,0.04345]
[1763066818134,0.01013479,98670.0,98635.0,0.0608]
[1763066818362,0.09816915,98642.0,98621.0,0.04645]
[1763066818569,0.001,98633.0,98621.0,0.04645]
[1763066818769,0.60717737,98640.0,98621.0,0.04645]
[1763066818971,0.09816915,98642.0,98621.0,0.04345]
[1763066819119,0.09816915,98642.0,98626.0,0.003]
[1763066819740,0.09816915,98642.0,98621.0,0.13049]
[1763066819942,0.60717737,98640.0,98621.0,0.04345]
[1763066820144,0.001,98632.0,98621.0,0.04345]
[1763066820345,0.09816915,98642.0,98622.0,0.08448]
[1763066820550,0.09816915,98661.0,98641.0,0.05303]
[1763066820706,0.09816915,98661.0,98634.0,0.08448]
[1763066820707,0.09816915,98642.0,98634.0,0.08448]
[1763066820938,0.09816915,98642.0,98622.0,0.08448]
[1763066821140,0.01590614,98644.0,98641.0,0.05303]
[1763066821481,0.02455,98684.0,98641.0,0.05303]
[1763066821688,0.01590403,98667.0,98650.0,0.05303]
[1763066822153,0.01033171,98700.0,98650.0,0.05303]
[1763066822154,0.02455,98693.0,98666.0,0.09548]
[1763066822373,0.09816915,98667.0,98651.0,0.12693]
[1763066822675,0.09816915,98686.0,98666.0,0.05303]
[1763066822884,0.09863028,98686.0,98666.0,0.05303]
[1763066823109,0.00046113,98686.0,98685.0,0.04245]
[1763066823320,0.00046113,98686.0,98685.0,0.09548]
[1763066823529,0.00046113,98686.0,98685.0,0.08586874]
[1763066823936,0.00046113,98686.0,98685.0,0.04245]
[1763066824149,0.00046113,98686.0,98678.0,0.04245]
[1763066824358,0.00046113,98686.0,98685.0,0.05303]
[1763066824562,0.00146113,98686.0,98679.0,0.08448]
[1763066824947,0.00046113,98686.0,98679.0,0.08448]
[1763066825352,0.00046113,98686.0,98680.0,0.36641874]
[1763066825717,0.00046113,98686.0,98682.0,0.04341874]
[1763066826113,0.00046113,98686.0,98685.0,0.04641874]
[1763066826318,0.00046113,98686.0,98685.0,0.04341874]
[1763066826976,0.00146113,98686.0,98685.0,0.44182771]
[1763066827123,0.0002,98700.0,98695.0,0.36641874]
[1763066827330,0.0002,98700.0,98699.0,0.05725]
[1763066827523,0.0002,98700.0,98697.0,0.04341874]
[1763066827746,0.0002,98700.0,98698.0,0.323]
[1763066828030,0.0002,98700.0,98699.0,0.52563629]
[1763066828711,0.0002,98700.0,98699.0,0.323]
[1763066829119,0.0012,98700.0,98699.0,0.328]
[1763066829353,0.0012,98700.0,98699.0,0.005]
[1763066829545,0.0002,98700.0,98695.0,0.00211718]
[1763066829758,0.12029915,98696.0,98695.0,0.00211718]
[1763066829950,0.09816915,98696.0,98695.0,0.00211718]
[1763066830270,0.09816915,98696.0,98695.0,0.00011718]
[1763066830460,0.1140676,98696.0,98695.0,0.00011718]
[1763066830698,0.01589845,98696.0,98672.0,0.07889718]
[1763066830848,0.01603675,98696.0,98672.0,0.07889718]
[1763066831059,0.09816915,98688.0,98672.0,0.07889718]
[1763066831943,0.01603675,98696.0,98672.0,0.07889718]
[1763066832147,0.01603675,98696.0,98672.0,0.07989718]
[1763066832370,0.01603675,98696.0,98695.0,0.05725]
[1763066832575,0.01603675,98696.0,98673.0,0.323]
[1763066832576,0.0001383,98696.0,98673.0,0.323]
[1763066832795,0.0001383,98696.0,98695.0,0.03978]
[1763066832993,0.0001383,98696.0,98675.0,0.323]
[1763066832994,0.0001383,98696.0,98686.0,0.03978]
[1763066833465,0.0001383,98696.0,98695.0,0.05725]
[1763066833674,0.0001383,98696.0,98686.0,0.11874]
[1763066833908,0.0001383,98696.0,98686.0,0.03978]
[1763066834314,0.0001383,98696.0,98687.0,0.07896]
[1763066834703,0.0001383,98696.0,98695.0,0.05725]
[1763066836207,0.0001383,98696.0,98695.0,0.05825]
[1763066836728,0.0001383,98696.0,98695.0,0.001]
[1763066837836,0.0001383,98696.0,98687.0,0.04341874]
[1763066837969,0.0001383,98696.0,98686.0,0.03978]
[1763066838173,0.0001383,98696.0,98695.0,0.003]
[1763066838590,0.0001383,98696.0,98695.0,0.002]
[1763066838794,0.0001383,98696.0,98695.0,0.005]
[1763066839240,0.0001383,98696.0,98695.0,0.003]
[1763066839659,0.12049745,98696.0,98695.0,0.006]
[1763066840073,0.12049745,98696.0,98695.0,0.003]
[1763066840521,0.44349745,98696.0,98695.0,0.002]
[1763066840917,0.20268028,98678.0,98656.0,0.07896]
[1763066841064,0.01013376,98680.0,98656.0,0.07896]
[1763066841065,0.09816915,98668.0,98656.0,0.07896]
[1763066841715,0.01013273,98690.0,98656.0,0.07896]
[1763066841716,0.09816915,98678.0,98656.0,0.07896]
[1763066842499,0.09816915,98678.0,98656.0,0.08096]
[1763066842692,0.09816915,98678.0,98656.0,0.07896]
[1763066843239,0.09816915,98678.0,98656.0,0.07996]
[1763066843795,0.09816915,98678.0,98656.0,0.08196]
[1763066844208,0.20268236,98677.0,98656.0,0.07996]
[1763066844405,0.09816915,98660.0,98656.0,0.001]
[1763066844611,0.60717737,98670.0,98656.0,0.002]
[1763066844815,0.09816915,98662.0,98656.0,0.002]
[1763066845102,0.09816915,98662.0,98656.0,0.001]
[1763066845654,0.09816915,98661.0,98656.0,0.003]
[1763066846060,0.09816915,98661.0,98656.0,0.001]
[1763066846261,0.09816915,98661.0,98656.0,0.003]
[1763066846445,0.22491256,98657.0,98656.0,0.001]
[1763066846643,0.22491256,98657.0,98628.0,0.07896]
[1763066846644,0.02219,98657.0,98628.0,0.07896]
[1763066846963,0.09816915,98646.0,98629.0,0.323]
[1763066847368,0.00013823,98662.0,98648.0,0.05725]
[1763066847630,0.00013823,98662.0,98649.0,0.05725]
[1763066847631,0.09816915,98661.0,98649.0,0.05725]
[1763066847765,0.00013823,98662.0,98661.0,0.05725]
[1763066848413,0.00013823,98662.0,98640.0,0.323]
[1763066848414,0.00013823,98662.0,98656.0,0.002]
[1763066848558,0.00013823,98662.0,98651.0,0.07896]
[1763066848559,0.09816915,98661.0,98651.0,0.07896]
[1763066848763,0.09816915,98660.0,98651.0,0.07896]
[1763066849200,0.00013823,98662.0,98659.0,0.05725]
[1763066849401,0.00013823,98662.0,98661.0,0.05725]
[1763066850025,0.00013823,98662.0,98661.0,0.05925]